[Event "GrandPrix_30.05"]
[Site "Chess.com"]
[Date "2020.05.30"]
[Round "1"]
[White "swisspower96"]
[Black "chess_big_master"]
[Result "1-0"]
[WhiteElo "2356"]
[BlackElo "2012"]
[TimeControl "600+2"]
[EndTime "8:16:55 PDT"]
[Termination "swisspower96 won on time"]

1. d4 {[%clk 0:10:01.9]} 1... d5 {[%clk 0:09:42]} 2. c4 {[%clk 0:10:01.5]} 2...
e6 {[%clk 0:09:41.2]} 3. Nf3 {[%clk 0:10:01.7]} 3... Nf6 {[%clk 0:09:38.6]} 4.
g3 {[%clk 0:10:02.5]} 4... Bb4+ {[%clk 0:09:36.9]} 5. Bd2 {[%clk 0:10:03.4]}
5... Bd6 {[%clk 0:09:36.4]} 6. Nc3 {[%clk 0:09:59]} 6... c6 {[%clk 0:09:26.6]}
7. Qc2 {[%clk 0:09:58.6]} 7... O-O {[%clk 0:09:20.3]} 8. e4 {[%clk 0:09:59.1]}
8... dxe4 {[%clk 0:09:16.6]} 9. Nxe4 {[%clk 0:10:01]} 9... Nxe4 {[%clk
0:09:11.8]} 10. Qxe4 {[%clk 0:10:02.9]} 10... Nd7 {[%clk 0:09:12.6]} 11. Bd3
{[%clk 0:10:03.6]} 11... Nf6 {[%clk 0:09:01.5]} 12. Qh4 {[%clk 0:10:04.1]} 12...
h6 {[%clk 0:08:52.1]} 13. O-O-O {[%clk 0:09:13.4]} 13... c5 {[%clk 0:08:14]} 14.
dxc5 {[%clk 0:08:44.8]} 14... Be7 {[%clk 0:06:38.7]} 15. Bxh6 {[%clk 0:07:06]}
15... e5 {[%clk 0:03:06.5]} 16. Bg5 {[%clk 0:05:08.5]} 16... Re8 {[%clk
0:00:20.3]} 17. Bh7+ {[%clk 0:05:07]} 17... Kf8 {[%clk 0:00:03.9]} 18. Rxd8
{[%clk 0:05:06.2]} 18... Bxd8 {[%clk 0:00:04.6]} 19. Re1 {[%clk 0:04:40]} 1-0

[Event "GrandPrix_30.05"]
[Site "Chess.com"]
[Date "2020.05.30"]
[Round "1"]
[White "SavelijTartakover"]
[Black "Firegrizzly"]
[Result "1/2-1/2"]
[WhiteElo "2489"]
[BlackElo "2189"]
[TimeControl "600+2"]
[EndTime "8:16:59 PDT"]
[Termination "Game drawn by repetition"]

1. d4 {[%clk 0:10:01.2]} 1... Nf6 {[%clk 0:09:58.8]} 2. c4 {[%clk 0:09:52.6]}
2... e6 {[%clk 0:09:59]} 3. Nf3 {[%clk 0:09:52.7]} 3... d5 {[%clk 0:09:59.7]} 4.
Bg5 {[%clk 0:09:52.3]} 4... Nbd7 {[%clk 0:09:59.2]} 5. e3 {[%clk 0:09:51.8]}
5... c6 {[%clk 0:09:57.6]} 6. Nbd2 {[%clk 0:09:48.1]} 6... h6 {[%clk 0:09:53.8]}
7. Bh4 {[%clk 0:09:46.4]} 7... b6 {[%clk 0:09:41.7]} 8. Bd3 {[%clk 0:09:45.9]}
8... Bb7 {[%clk 0:09:40.7]} 9. O-O {[%clk 0:09:46.4]} 9... Be7 {[%clk
0:09:39.6]} 10. Qc2 {[%clk 0:09:46.6]} 10... O-O {[%clk 0:09:33.6]} 11. Rfd1
{[%clk 0:09:31.3]} 11... Rc8 {[%clk 0:09:27.9]} 12. Rac1 {[%clk 0:09:04.1]}
12... c5 {[%clk 0:09:18.6]} 13. Qb1 {[%clk 0:08:48.9]} 13... cxd4 {[%clk
0:09:00.7]} 14. Nxd4 {[%clk 0:08:44.8]} 14... Nc5 {[%clk 0:08:40.7]} 15. Bf1
{[%clk 0:08:38.3]} 15... Nfe4 {[%clk 0:08:33]} 16. Bxe7 {[%clk 0:08:35.1]} 16...
Qxe7 {[%clk 0:08:32.7]} 17. Nxe4 {[%clk 0:08:32.5]} 17... Nxe4 {[%clk
0:08:23.3]} 18. cxd5 {[%clk 0:07:36.7]} 18... Bxd5 {[%clk 0:08:06.3]} 19. f3
{[%clk 0:07:30.8]} 19... Nf6 {[%clk 0:07:53.5]} 20. Ba6 {[%clk 0:07:13.9]} 20...
Bb7 {[%clk 0:07:46.2]} 21. Qd3 {[%clk 0:07:02.4]} 21... Nd5 {[%clk 0:06:26.4]}
22. Bxb7 {[%clk 0:06:43.3]} 22... Qxb7 {[%clk 0:06:26]} 23. e4 {[%clk
0:06:43.9]} 23... Nf4 {[%clk 0:06:18.6]} 24. Qe3 {[%clk 0:06:41.5]} 24... e5
{[%clk 0:05:39.1]} 25. Ne2 {[%clk 0:06:24.8]} 25... Nxe2+ {[%clk 0:05:32.3]} 26.
Qxe2 {[%clk 0:06:24]} 26... Rxc1 {[%clk 0:05:32.8]} 27. Rxc1 {[%clk 0:06:24.6]}
27... Rd8 {[%clk 0:05:14.3]} 28. Qc4 {[%clk 0:06:12.5]} 28... Qd7 {[%clk
0:05:09.7]} 29. h3 {[%clk 0:05:51.1]} 29... h5 {[%clk 0:05:06.4]} 30. Kh2 {[%clk
0:05:44.2]} 30... Qd2 {[%clk 0:05:00.1]} 31. Qc3 {[%clk 0:04:51.6]} 31... Qf4+
{[%clk 0:04:59.1]} 32. Kh1 {[%clk 0:04:52.6]} 32... h4 {[%clk 0:04:55.1]} 33. b4
{[%clk 0:04:36.3]} 33... Rd2 {[%clk 0:04:47.7]} 34. a3 {[%clk 0:04:36.8]} 34...
Kh7 {[%clk 0:04:40.4]} 35. Rg1 {[%clk 0:04:22.5]} 35... b5 {[%clk 0:04:09.5]}
36. Qc6 {[%clk 0:04:09.7]} 36... Ra2 {[%clk 0:04:00.1]} 37. Qxb5 {[%clk
0:04:10]} 37... Rxa3 {[%clk 0:04:00.8]} 38. Qd7 {[%clk 0:04:07.7]} 38... g6
{[%clk 0:03:51.5]} 39. Qg4 {[%clk 0:04:03.7]} 39... Qxg4 {[%clk 0:03:48]} 40.
hxg4 {[%clk 0:04:04.2]} 40... Kh6 {[%clk 0:03:40.7]} 41. Rc1 {[%clk 0:03:58]}
41... Kg5 {[%clk 0:03:40.3]} 42. Rc7 {[%clk 0:03:57.7]} 42... f6 {[%clk
0:03:41.1]} 43. Kh2 {[%clk 0:03:55.6]} 43... Ra4 {[%clk 0:03:39.5]} 44. b5
{[%clk 0:03:54.7]} 44... Ra5 {[%clk 0:03:40.1]} 45. Rb7 {[%clk 0:03:54.2]} 45...
Kf4 {[%clk 0:03:34.4]} 46. b6 {[%clk 0:03:46.2]} 46... axb6 {[%clk 0:03:34.1]}
47. Rxb6 {[%clk 0:03:48.1]} 47... Kg5 {[%clk 0:03:35.1]} 48. Rb8 {[%clk
0:03:47]} 48... Ra1 {[%clk 0:03:34.3]} 49. Rb6 {[%clk 0:03:46.7]} 49... Rd1
{[%clk 0:03:32.3]} 50. Ra6 {[%clk 0:03:46.8]} 50... Rf1 {[%clk 0:03:32.4]} 51.
Rb6 {[%clk 0:03:47.2]} 51... Re1 {[%clk 0:03:28.1]} 52. Ra6 {[%clk 0:03:47.7]}
52... Rf1 {[%clk 0:03:28.8]} 53. Rb6 {[%clk 0:03:48.6]} 53... Re1 {[%clk
0:03:28.2]} 54. Ra6 {[%clk 0:03:49.4]} 54... Rf1 {[%clk 0:03:29.3]} 1/2-1/2

[Event "GrandPrix_30.05"]
[Site "Chess.com"]
[Date "2020.05.30"]
[Round "1"]
[White "BashirliN"]
[Black "TimofeevAr"]
[Result "0-1"]
[WhiteElo "2179"]
[BlackElo "2642"]
[TimeControl "600+2"]
[EndTime "8:17:00 PDT"]
[Termination "TimofeevAr won by resignation"]

1. e4 {[%clk 0:10:01.6]} 1... d5 {[%clk 0:09:58.6]} 2. exd5 {[%clk 0:09:16.1]}
2... Qxd5 {[%clk 0:09:57.1]} 3. Nc3 {[%clk 0:09:18]} 3... Qd8 {[%clk 0:09:57.8]}
4. Nf3 {[%clk 0:08:37.4]} 4... g6 {[%clk 0:09:55.6]} 5. Bc4 {[%clk 0:08:30.1]}
5... Bg7 {[%clk 0:09:54.8]} 6. O-O {[%clk 0:08:09.5]} 6... Nf6 {[%clk
0:09:48.4]} 7. d4 {[%clk 0:08:05.7]} 7... O-O {[%clk 0:09:48.6]} 8. h3 {[%clk
0:07:52.3]} 8... Nbd7 {[%clk 0:09:47]} 9. Re1 {[%clk 0:07:50.9]} 9... Nb6 {[%clk
0:09:45.8]} 10. Bb3 {[%clk 0:07:45]} 10... c6 {[%clk 0:09:45.1]} 11. Bg5 {[%clk
0:07:44.4]} 11... Nbd5 {[%clk 0:09:33.3]} 12. Nxd5 {[%clk 0:07:37.9]} 12... cxd5
{[%clk 0:09:32.4]} 13. c3 {[%clk 0:07:36.8]} 13... e6 {[%clk 0:09:19.7]} 14. Ne5
{[%clk 0:07:29.1]} 14... Qc7 {[%clk 0:09:19.5]} 15. Bf4 {[%clk 0:07:20.6]} 15...
Qb6 {[%clk 0:09:00]} 16. Rb1 {[%clk 0:06:31.8]} 16... Bd7 {[%clk 0:08:56.2]} 17.
Bg5 {[%clk 0:06:29.4]} 17... Bc6 {[%clk 0:08:51.9]} 18. Qf3 {[%clk 0:06:28.9]}
18... Ne4 {[%clk 0:08:50.7]} 19. Be7 {[%clk 0:06:29.8]} 19... Nd2 {[%clk
0:08:44.2]} 20. Qf4 {[%clk 0:05:43.9]} 20... Nxb1 {[%clk 0:08:40.9]} 21. Bxf8
{[%clk 0:05:34]} 21... Rxf8 {[%clk 0:08:38]} 22. Rxb1 {[%clk 0:05:35.6]} 22...
Bb5 {[%clk 0:08:34.8]} 23. a4 {[%clk 0:05:29]} 23... Bxe5 {[%clk 0:08:29.2]} 24.
dxe5 {[%clk 0:04:44.7]} 24... Bd3 {[%clk 0:08:27.9]} 25. Rd1 {[%clk 0:04:46.3]}
25... Qxb3 {[%clk 0:08:24.7]} 26. Rxd3 {[%clk 0:04:47.8]} 26... Qxb2 {[%clk
0:08:25.8]} 27. Kh2 {[%clk 0:04:41.9]} 27... Qc2 {[%clk 0:08:16.7]} 28. Rf3
{[%clk 0:04:36.8]} 28... a5 {[%clk 0:08:07.6]} 29. h4 {[%clk 0:04:34]} 29... Qe4
{[%clk 0:08:02.5]} 30. Qf6 {[%clk 0:04:31.5]} 30... Qg4 {[%clk 0:07:12.2]} 31.
Rf4 {[%clk 0:03:37.9]} 31... Qh5 {[%clk 0:07:11]} 32. c4 {[%clk 0:03:33.8]}
32... dxc4 {[%clk 0:06:54.6]} 33. Rxc4 {[%clk 0:03:35.7]} 33... Qf5 {[%clk
0:06:52.3]} 34. Rc7 {[%clk 0:03:19.7]} 34... h5 {[%clk 0:06:37.7]} 35. Rxb7
{[%clk 0:03:07.9]} 35... Qe4 {[%clk 0:06:37.1]} 36. Ra7 {[%clk 0:02:33]} 36...
Qxa4 {[%clk 0:06:36.2]} 37. Kg3 {[%clk 0:02:15.6]} 37... Qd4 {[%clk 0:06:21.1]}
38. Re7 {[%clk 0:01:36.8]} 38... a4 {[%clk 0:06:16.9]} 39. f3 {[%clk 0:01:00.7]}
39... a3 {[%clk 0:05:56.7]} 0-1

[Event "GrandPrix_30.05"]
[Site "Chess.com"]
[Date "2020.05.30"]
[Round "1"]
[White "Kiril1965"]
[Black "Jan1401"]
[Result "0-1"]
[WhiteElo "2564"]
[BlackElo "2298"]
[TimeControl "600+2"]
[EndTime "8:17:07 PDT"]
[Termination "Jan1401 won by resignation"]

1. d4 {[%clk 0:09:58.2]} 1... e6 {[%clk 0:09:57.5]} 2. Nf3 {[%clk 0:09:55.4]}
2... Nf6 {[%clk 0:09:56.7]} 3. Bf4 {[%clk 0:09:45.5]} 3... b6 {[%clk 0:09:40]}
4. e3 {[%clk 0:09:44]} 4... Bb7 {[%clk 0:09:40.3]} 5. Be2 {[%clk 0:09:41.2]}
5... c5 {[%clk 0:09:31.9]} 6. O-O {[%clk 0:09:38.5]} 6... Be7 {[%clk 0:09:26]}
7. h3 {[%clk 0:09:33.2]} 7... O-O {[%clk 0:09:26]} 8. a4 {[%clk 0:09:32.7]} 8...
Nc6 {[%clk 0:09:03.8]} 9. c3 {[%clk 0:09:26.7]} 9... d5 {[%clk 0:08:52.4]} 10.
Nbd2 {[%clk 0:09:24.6]} 10... Bd6 {[%clk 0:08:30.9]} 11. Bg5 {[%clk 0:09:01.8]}
11... h6 {[%clk 0:08:14]} 12. Bh4 {[%clk 0:08:48.6]} 12... Be7 {[%clk
0:07:33.4]} 13. Bd3 {[%clk 0:08:42.6]} 13... Qc7 {[%clk 0:07:24.9]} 14. Qe2
{[%clk 0:08:38.9]} 14... Rfe8 {[%clk 0:06:35]} 15. Rfe1 {[%clk 0:08:31.5]} 15...
e5 {[%clk 0:06:26.1]} 16. dxe5 {[%clk 0:08:08.9]} 16... Nxe5 {[%clk 0:06:25.9]}
17. Nxe5 {[%clk 0:08:08]} 17... Qxe5 {[%clk 0:06:26.3]} 18. Bb5 {[%clk
0:07:56.1]} 18... Red8 {[%clk 0:06:18.1]} 19. Nf3 {[%clk 0:07:37.2]} 19... Qe6
{[%clk 0:06:09.2]} 20. Ba6 {[%clk 0:07:34.7]} 20... Bc6 {[%clk 0:05:54]} 21. Bd3
{[%clk 0:07:18.9]} 21... Bd6 {[%clk 0:05:52]} 22. Bc2 {[%clk 0:07:15.2]} 22...
g5 {[%clk 0:05:49.7]} 23. Bg3 {[%clk 0:07:14.7]} 23... Bxg3 {[%clk 0:05:50.6]}
24. fxg3 {[%clk 0:07:15.5]} 24... Re8 {[%clk 0:05:49.9]} 25. g4 {[%clk
0:07:09.2]} 25... Ne4 {[%clk 0:05:35.8]} 26. Rad1 {[%clk 0:07:04.2]} 26... Re7
{[%clk 0:05:32.6]} 27. Nd2 {[%clk 0:06:53.1]} 27... Nd6 {[%clk 0:05:19]} 28. Qd3
{[%clk 0:06:51.1]} 28... f6 {[%clk 0:04:27.2]} 29. Qg6+ {[%clk 0:06:30.7]} 29...
Rg7 {[%clk 0:04:27.8]} 30. Qxh6 {[%clk 0:05:49.6]} 30... Nf7 {[%clk 0:04:26.3]}
31. Qh5 {[%clk 0:05:48.3]} 31... Ne5 {[%clk 0:04:27.3]} 32. e4 {[%clk 0:05:23]}
32... Be8 {[%clk 0:04:20]} 33. exd5 {[%clk 0:05:10.1]} 33... Qe7 {[%clk
0:04:12.4]} 34. d6 {[%clk 0:04:55.7]} 34... Qf8 {[%clk 0:04:07.4]} 35. Qh6
{[%clk 0:04:51.9]} 35... Ng6 {[%clk 0:02:35.4]} 36. Rxe8 {[%clk 0:04:32]} 36...
Qxe8 {[%clk 0:02:33.2]} 37. Bb3+ {[%clk 0:04:29.8]} 37... Kf8 {[%clk 0:02:30.4]}
38. Qh8+ {[%clk 0:04:27.1]} 38... Nxh8 {[%clk 0:02:30]} 39. Nf3 {[%clk
0:04:00.7]} 39... Rd8 {[%clk 0:02:26.7]} 40. Kh1 {[%clk 0:03:59]} 40... Rgd7
{[%clk 0:02:25.8]} 41. Rf1 {[%clk 0:03:56.8]} 41... Kg7 {[%clk 0:02:24.1]} 0-1

[Event "GrandPrix_30.05"]
[Site "Chess.com"]
[Date "2020.05.30"]
[Round "1"]
[White "FCLitras"]
[Black "kotmizer"]
[Result "0-1"]
[WhiteElo "1937"]
[BlackElo "2295"]
[TimeControl "600+2"]
[EndTime "8:17:12 PDT"]
[Termination "kotmizer won by resignation"]

1. d4 {[%clk 0:09:57.2]} 1... Nf6 {[%clk 0:09:59.9]} 2. c4 {[%clk 0:09:54.9]}
2... c5 {[%clk 0:10:00.5]} 3. d5 {[%clk 0:09:53.1]} 3... e6 {[%clk 0:10:00.8]}
4. Nc3 {[%clk 0:09:53]} 4... exd5 {[%clk 0:10:01.5]} 5. cxd5 {[%clk 0:09:54.9]}
5... d6 {[%clk 0:10:02.2]} 6. Nf3 {[%clk 0:09:55.3]} 6... g6 {[%clk 0:10:02.8]}
7. g3 {[%clk 0:09:56.5]} 7... Bg7 {[%clk 0:10:03]} 8. Bg2 {[%clk 0:09:57.4]}
8... O-O {[%clk 0:10:03.8]} 9. O-O {[%clk 0:09:58.3]} 9... Nbd7 {[%clk 0:10:03]}
10. Bf4 {[%clk 0:09:13.7]} 10... Qe7 {[%clk 0:09:55.3]} 11. Re1 {[%clk
0:09:13.7]} 11... a6 {[%clk 0:09:48.2]} 12. a4 {[%clk 0:09:13]} 12... Ng4 {[%clk
0:09:47]} 13. a5 {[%clk 0:08:22.5]} 13... Re8 {[%clk 0:09:23.8]} 14. Rc1 {[%clk
0:08:04.4]} 14... Nge5 {[%clk 0:09:22]} 15. Nxe5 {[%clk 0:08:01.6]} 15... Nxe5
{[%clk 0:09:22.2]} 16. Na4 {[%clk 0:07:56.3]} 16... Bd7 {[%clk 0:08:46.3]} 17.
Nb6 {[%clk 0:07:55.3]} 17... Rad8 {[%clk 0:08:46.5]} 18. b4 {[%clk 0:07:33.6]}
18... Bb5 {[%clk 0:08:04.4]} 19. bxc5 {[%clk 0:06:57.4]} 19... dxc5 {[%clk
0:08:04.9]} 20. Qd2 {[%clk 0:05:49.5]} 20... Bf6 {[%clk 0:06:55.9]} 21. Be3
{[%clk 0:05:23.8]} 21... c4 {[%clk 0:06:51.2]} 22. Bd4 {[%clk 0:05:24.6]} 22...
h5 {[%clk 0:06:02.2]} 23. Bxe5 {[%clk 0:05:17.1]} 23... Bxe5 {[%clk 0:06:02.2]}
24. Nxc4 {[%clk 0:05:18.1]} 24... Bxc4 {[%clk 0:05:58.7]} 25. Rxc4 {[%clk
0:05:20]} 25... Qf6 {[%clk 0:05:53.9]} 26. f4 {[%clk 0:05:03.8]} 26... Bb8
{[%clk 0:05:53.1]} 27. e4 {[%clk 0:05:04.2]} 27... h4 {[%clk 0:05:49.4]} 28. e5
{[%clk 0:05:02.1]} 28... Qe7 {[%clk 0:05:50]} 29. d6 {[%clk 0:04:59.8]} 29...
Bxd6 {[%clk 0:05:33.8]} 30. Qc3 {[%clk 0:04:25.5]} 30... Bb8 {[%clk 0:05:29.3]}
31. e6 {[%clk 0:04:03.9]} 31... fxe6 {[%clk 0:05:09.5]} 32. Rb1 {[%clk
0:03:59.3]} 32... hxg3 {[%clk 0:04:45.1]} 33. Qxg3 {[%clk 0:03:40.7]} 33... Qf6
{[%clk 0:04:05.9]} 34. Bxb7 {[%clk 0:03:36.5]} 34... Re7 {[%clk 0:02:51.7]} 35.
Be4 {[%clk 0:03:18.1]} 35... Bxf4 {[%clk 0:02:42.5]} 36. Qxg6+ {[%clk
0:03:12.8]} 36... Rg7 {[%clk 0:02:42.2]} 0-1

[Event "GrandPrix_30.05"]
[Site "Chess.com"]
[Date "2020.05.30"]
[Round "1"]
[White "Msb2"]
[Black "ZEN-22"]
[Result "1-0"]
[WhiteElo "2647"]
[BlackElo "2177"]
[TimeControl "600+2"]
[EndTime "8:17:21 PDT"]
[Termination "Msb2 won by resignation"]

1. d4 {[%clk 0:10:00.9]} 1... Nf6 {[%clk 0:09:39.2]} 2. c4 {[%clk 0:10:01]} 2...
d6 {[%clk 0:09:39.8]} 3. Nf3 {[%clk 0:10:01.6]} 3... g6 {[%clk 0:09:40.4]} 4.
Nc3 {[%clk 0:10:02.7]} 4... Bf5 {[%clk 0:09:40.1]} 5. d5 {[%clk 0:10:01.6]} 5...
c5 {[%clk 0:09:39.8]} 6. Nh4 {[%clk 0:09:51.1]} 6... Bd7 {[%clk 0:09:38.5]} 7.
e4 {[%clk 0:09:51.1]} 7... e5 {[%clk 0:09:35.8]} 8. g3 {[%clk 0:09:10]} 8... Bg7
{[%clk 0:09:33.3]} 9. Be2 {[%clk 0:09:08.1]} 9... O-O {[%clk 0:09:32.2]} 10. O-O
{[%clk 0:09:06.1]} 10... Na6 {[%clk 0:09:33.5]} 11. Be3 {[%clk 0:08:52.1]} 11...
Nc7 {[%clk 0:09:18.8]} 12. a4 {[%clk 0:08:48.7]} 12... Rb8 {[%clk 0:09:13.4]}
13. Ng2 {[%clk 0:08:43.5]} 13... h5 {[%clk 0:09:10.4]} 14. Bg5 {[%clk
0:08:36.9]} 14... Qe8 {[%clk 0:09:09.5]} 15. Qd2 {[%clk 0:08:31.4]} 15... Nh7
{[%clk 0:09:06.1]} 16. Bh6 {[%clk 0:08:32.5]} 16... b6 {[%clk 0:09:04]} 17. b3
{[%clk 0:08:29.6]} 17... a6 {[%clk 0:09:03.3]} 18. Bxg7 {[%clk 0:08:18.3]} 18...
Kxg7 {[%clk 0:09:03.7]} 19. f4 {[%clk 0:08:20.1]} 19... f5 {[%clk 0:09:01.9]}
20. Rae1 {[%clk 0:08:03.5]} 20... exf4 {[%clk 0:08:25.4]} 21. Nxf4 {[%clk
0:07:30]} 21... Qe5 {[%clk 0:08:23]} 22. exf5 {[%clk 0:06:48]} 22... Bxf5 {[%clk
0:08:13.8]} 23. Bxh5 {[%clk 0:05:54.1]} 23... Qd4+ {[%clk 0:07:58.4]} 24. Qxd4+
{[%clk 0:05:53]} 24... cxd4 {[%clk 0:08:00.3]} 25. Re7+ {[%clk 0:05:54.3]} 25...
Rf7 {[%clk 0:07:33.7]} 26. Rxf7+ {[%clk 0:05:30.3]} 26... Kxf7 {[%clk 0:07:34]}
27. Nxg6 {[%clk 0:05:31.9]} 27... dxc3 {[%clk 0:07:15.3]} 28. Rxf5+ {[%clk
0:05:31.2]} 28... Kg7 {[%clk 0:07:16.3]} 29. Nf4 {[%clk 0:05:32.1]} 29... Nf6
{[%clk 0:07:14.9]} 30. Bd1 {[%clk 0:05:17.3]} 30... b5 {[%clk 0:07:14]} 31. axb5
{[%clk 0:03:56.2]} 31... axb5 {[%clk 0:07:12.4]} 32. c5 {[%clk 0:03:49.7]} 32...
Ra8 {[%clk 0:06:03.4]} 33. cxd6 {[%clk 0:02:11.5]} 33... Nce8 {[%clk 0:06:02.7]}
34. Ne6+ {[%clk 0:02:09.7]} 34... Kg6 {[%clk 0:06:02]} 35. Bc2 {[%clk
0:01:59.9]} 35... Ra1+ {[%clk 0:05:48.2]} 36. Rf1+ {[%clk 0:02:00]} 36... Kf7
{[%clk 0:05:43.6]} 37. Rxa1 {[%clk 0:02:00.7]} 37... Nxd6 {[%clk 0:05:44.3]} 38.
Nf4 {[%clk 0:02:00.9]} 38... Ng4 {[%clk 0:05:41.1]} 39. Re1 {[%clk 0:01:58.5]}
39... b4 {[%clk 0:05:32.4]} 40. h3 {[%clk 0:01:54.6]} 40... Nf6 {[%clk
0:05:31.8]} 41. Bd3 {[%clk 0:01:53]} 41... Nb7 {[%clk 0:05:30.5]} 42. Kf2 {[%clk
0:01:52.4]} 42... Nc5 {[%clk 0:05:31.3]} 43. Bc2 {[%clk 0:01:53.8]} 43... Nb7
{[%clk 0:05:27.8]} 44. Kf3 {[%clk 0:01:54.7]} 44... Nd6 {[%clk 0:05:25.9]} 45.
Bd3 {[%clk 0:01:55.7]} 45... Nd7 {[%clk 0:05:26.9]} 46. Bc2 {[%clk 0:01:41.4]}
46... Nc5 {[%clk 0:05:23.2]} 47. Nd3 {[%clk 0:01:40.2]} 47... Na6 {[%clk
0:05:16]} 48. Ra1 {[%clk 0:01:39.4]} 48... Nc7 {[%clk 0:05:14.4]} 49. Nxb4
{[%clk 0:01:39.5]} 49... Ndb5 {[%clk 0:05:13]} 50. Ke3 {[%clk 0:01:40]} 50...
Kf6 {[%clk 0:05:12.9]} 51. Kd3 {[%clk 0:01:40.2]} 51... Ne8 {[%clk 0:05:14.3]}
52. Ra6+ {[%clk 0:01:39.4]} 52... Ned6 {[%clk 0:05:14.9]} 53. Rxd6+ {[%clk
0:01:38.6]} 53... Nxd6 {[%clk 0:05:14.7]} 54. Kxc3 {[%clk 0:01:40.1]} 1-0

[Event "GrandPrix_30.05"]
[Site "Chess.com"]
[Date "2020.05.30"]
[Round "1"]
[White "Pash2015"]
[Black "DinaBelenkaya"]
[Result "0-1"]
[WhiteElo "2226"]
[BlackElo "1625"]
[TimeControl "600+2"]
[EndTime "8:17:21 PDT"]
[Termination "DinaBelenkaya won by resignation"]

1. e4 {[%clk 0:10:00.9]} 1... d5 {[%clk 0:09:59.6]} 2. exd5 {[%clk 0:10:01.2]}
2... Qxd5 {[%clk 0:10:00]} 3. d4 {[%clk 0:10:02.1]} 3... Nc6 {[%clk 0:09:55]} 4.
Nf3 {[%clk 0:10:02.4]} 4... Bg4 {[%clk 0:09:55.9]} 5. Be2 {[%clk 0:10:03.2]}
5... O-O-O {[%clk 0:09:45.9]} 6. c3 {[%clk 0:10:02.8]} 6... e5 {[%clk
0:09:19.2]} 7. Be3 {[%clk 0:10:00.7]} 7... f5 {[%clk 0:06:35.1]} 8. O-O {[%clk
0:09:25]} 8... e4 {[%clk 0:04:21.9]} 9. Nfd2 {[%clk 0:09:14.5]} 9... Bxe2 {[%clk
0:04:08.2]} 10. Qxe2 {[%clk 0:09:16.4]} 10... Qf7 {[%clk 0:04:09.2]} 11. Bg5
{[%clk 0:09:01.3]} 11... Nf6 {[%clk 0:04:03.8]} 12. f3 {[%clk 0:08:33.6]} 12...
Qh5 {[%clk 0:03:25.1]} 13. Bf4 {[%clk 0:07:55.1]} 13... g5 {[%clk 0:03:16.9]}
14. Be5 {[%clk 0:07:55.9]} 14... Nxe5 {[%clk 0:03:11.5]} 15. dxe5 {[%clk
0:07:57.8]} 15... Nd5 {[%clk 0:02:58.7]} 16. b4 {[%clk 0:07:38.4]} 16... Bg7
{[%clk 0:02:32.2]} 17. g4 {[%clk 0:06:43.6]} 17... Qh4 {[%clk 0:02:11.3]} 18.
fxe4 {[%clk 0:06:28.8]} 18... Nf4 {[%clk 0:02:09.4]} 19. Qf3 {[%clk 0:05:36.1]}
19... fxg4 {[%clk 0:02:07.4]} 20. Qe3 {[%clk 0:05:06.6]} 20... Rd3 {[%clk
0:01:57.8]} 21. Qxa7 {[%clk 0:04:39.2]} 21... Rg3+ {[%clk 0:01:18.5]} 22. Kh1
{[%clk 0:04:16]} 22... Rg2 {[%clk 0:01:15.3]} 23. Nf3 {[%clk 0:03:38.7]} 23...
gxf3 {[%clk 0:01:12.4]} 24. Qa8+ {[%clk 0:03:36.6]} 24... Kd7 {[%clk 0:01:13.7]}
25. Rd1+ {[%clk 0:03:35.6]} 25... Ke7 {[%clk 0:01:12]} 0-1

[Event "GrandPrix_30.05"]
[Site "Chess.com"]
[Date "2020.05.30"]
[Round "1"]
[White "VojtechPlat"]
[Black "LorisinoC"]
[Result "0-1"]
[WhiteElo "2265"]
[BlackElo "2102"]
[TimeControl "600+2"]
[EndTime "8:17:22 PDT"]
[Termination "LorisinoC won by resignation"]

1. e4 {[%clk 0:10:01.9]} 1... e5 {[%clk 0:10:00.4]} 2. Nf3 {[%clk 0:10:02.2]}
2... Nc6 {[%clk 0:10:00.6]} 3. Bb5 {[%clk 0:09:58.8]} 3... a6 {[%clk 0:09:59.8]}
4. Ba4 {[%clk 0:09:55.9]} 4... Nf6 {[%clk 0:09:58.8]} 5. d4 {[%clk 0:09:55.9]}
5... exd4 {[%clk 0:09:55.2]} 6. O-O {[%clk 0:09:56.1]} 6... Be7 {[%clk
0:09:52.8]} 7. Re1 {[%clk 0:09:56.4]} 7... b5 {[%clk 0:09:50.3]} 8. e5 {[%clk
0:09:45.5]} 8... Nxe5 {[%clk 0:09:40.6]} 9. Nxe5 {[%clk 0:09:44.5]} 9... bxa4
{[%clk 0:09:36.4]} 10. Qxd4 {[%clk 0:09:44.9]} 10... a5 {[%clk 0:09:27.9]} 11.
Nc3 {[%clk 0:09:25.8]} 11... O-O {[%clk 0:09:24.5]} 12. Bg5 {[%clk 0:09:23.8]}
12... h6 {[%clk 0:09:19.1]} 13. Bh4 {[%clk 0:09:22.4]} 13... Ra6 {[%clk
0:09:06.8]} 14. Qxa4 {[%clk 0:09:09.9]} 14... g5 {[%clk 0:08:26.7]} 15. Bg3
{[%clk 0:09:07.7]} 15... Bb4 {[%clk 0:08:17.2]} 16. Nd3 {[%clk 0:08:19.3]} 16...
Bxc3 {[%clk 0:08:16.3]} 17. bxc3 {[%clk 0:08:19.6]} 17... Bb7 {[%clk 0:07:59.4]}
18. Nc5 {[%clk 0:08:09.1]} 18... Bc6 {[%clk 0:07:56.6]} 19. Qd4 {[%clk 0:08:09]}
19... Rb6 {[%clk 0:07:54.6]} 20. h4 {[%clk 0:07:53.3]} 20... d6 {[%clk 0:07:33]}
21. Nd3 {[%clk 0:07:50.3]} 21... Nh5 {[%clk 0:07:29.1]} 22. Qg4 {[%clk
0:07:04.2]} 22... Nf6 {[%clk 0:07:09.4]} 23. Qd4 {[%clk 0:06:28]} 23... Nh5
{[%clk 0:07:09.5]} 24. c4 {[%clk 0:05:59.8]} 24... Nxg3 {[%clk 0:06:52.7]} 25.
fxg3 {[%clk 0:05:59.9]} 25... Kh7 {[%clk 0:06:53.6]} 26. Rf1 {[%clk 0:05:56.7]}
26... f5 {[%clk 0:06:42.9]} 27. Rae1 {[%clk 0:05:56.3]} 27... Rb8 {[%clk
0:06:35.3]} 28. Re2 {[%clk 0:05:22]} 28... Be4 {[%clk 0:06:30.6]} 29. Nf2 {[%clk
0:04:50.6]} 29... Bc6 {[%clk 0:06:19.5]} 30. Rfe1 {[%clk 0:04:38.5]} 30... Rf7
{[%clk 0:06:09.7]} 31. Nh3 {[%clk 0:04:27.1]} 31... gxh4 {[%clk 0:05:57.5]} 32.
Qf4 {[%clk 0:03:52.8]} 32... hxg3 {[%clk 0:05:35]} 33. Re6 {[%clk 0:03:52.7]}
33... Qf8 {[%clk 0:05:30.8]} 34. Qh4 {[%clk 0:03:37.2]} 34... Qg7 {[%clk
0:05:16.3]} 35. Qh5 {[%clk 0:03:11.6]} 35... a4 {[%clk 0:03:41.2]} 36. Ng5+
{[%clk 0:02:35.1]} 36... Kg8 {[%clk 0:03:40.6]} 37. Nxf7 {[%clk 0:02:29.6]}
37... Qd4+ {[%clk 0:03:33.3]} 38. R6e3 {[%clk 0:02:22]} 38... Qxe3+ {[%clk
0:03:27.3]} 0-1